fUSD/lending_fUSD_20250911
["ID","MTS","AMOUNT","RATE_DAILY","PERIOD"]
[384957338,1757633536310,-400.0,0.00029041,7]
[384957339,1757633536319,-1437.02,0.00029041,7]
[384957340,1757633536329,-400.0,0.00029041,7]
[384957341,1757633536338,-400.0,0.00029041,7]
[384957342,1757633536348,-400.0,0.00029041,7]
[384957343,1757633536358,-1198.42,0.00029041,7]
[384957344,1757633536368,-565.03,0.00029041,7]
[384957345,1757633536378,-659.58,0.00029041,7]
[384957346,1757633536388,-1075.82,0.00029041,7]
[384957347,1757633536399,-1181.4,0.00029041,7]
[384957348,1757633536409,-1195.49,0.00029041,7]
[384957349,1757633536419,-400.0,0.00029041,7]
[384957350,1757633536429,-1024.21,0.00029041,7]
[384957351,1757633536439,-438.81,0.00029041,7]
[384957352,1757633536450,-410.71,0.00029041,7]
[384957353,1757633536460,-1527.6,0.00029041,7]
[384957354,1757633536470,-400.0,0.00029041,7]
[384957355,1757633536480,-400.0,0.00029041,7]
[384957356,1757633536490,-485.99,0.00029041,7]
[384957357,1757633536500,-1028.89,0.00029041,7]
[384957358,1757633536511,-1724.24,0.00029041,7]
[384957359,1757633536522,-432.8,0.00029041,7]
[384957360,1757633536532,-1062.78,0.00029041,7]
[384957361,1757633536544,-400.0,0.00029041,7]
[384957362,1757633536555,-400.0,0.00029041,7]
[384957363,1757633536567,-619.4,0.00029041,7]
[384957364,1757633536576,-1272.98,0.00029041,7]
[384957365,1757633536586,-773.47,0.00029041,7]
[384957366,1757633536596,-929.55,0.00029041,7]
[384957367,1757633536605,-779.09,0.00029041,7]
[384957368,1757633536615,-400.0,0.00029041,7]
[384957369,1757633536625,-424.15,0.00029041,7]
[384957370,1757633536634,-1542.93,0.00029041,7]
[384957371,1757633536642,-2796.58,0.00029041,7]
[384957372,1757633536652,-1477.0,0.00029041,7]
[384957373,1757633536662,-1213.31,0.00029041,7]
[384957374,1757633536673,-1699.32,0.00029041,7]
[384957375,1757633536682,-400.0,0.00029041,7]
[384957376,1757633536692,-400.0,0.00029041,7]
[384957377,1757633536702,-678.5,0.00029041,7]
[384957378,1757633536712,-1111.24,0.00029041,7]
[384957379,1757633536721,-1277.28,0.00029041,7]
[384957380,1757633536731,-523.02,0.00029041,7]
[384957381,1757633536741,-400.0,0.00029041,7]
[384957382,1757633536751,-1035.53,0.00029041,7]
[384957383,1757633536762,-1081.61,0.00029041,7]
[384957384,1757633536772,-575.06,0.00029041,7]
[384957385,1757633536781,-1453.23,0.00029041,7]
[384957386,1757633536791,-543.93,0.00029041,7]
[384957387,1757633536801,-400.0,0.00029041,7]
[384957388,1757633536811,-400.0,0.00029041,7]
[384957389,1757633536820,-945.63,0.00029041,7]
[384957390,1757633536831,-1445.03,0.00029041,7]
[384957391,1757633536842,-4294.71,0.00029041,5]
[384957392,1757633536852,-752.34,0.00029041,7]
[384957393,1757633536863,-467.41,0.00029041,7]
[384957394,1757633536873,-400.0,0.00029041,7]
[384957395,1757633536883,-984.14,0.00029041,7]
[384957396,1757633536893,-400.0,0.00029041,7]
[384957397,1757633536903,-1118.93,0.00029041,7]
[384957398,1757633536913,-400.0,0.00029041,7]
[384957399,1757633536923,-467.27,0.00029041,7]
[384957400,1757633536933,-411.37,0.00029041,7]
[384957401,1757633536945,-400.0,0.00029041,7]
[384957402,1757633536954,-779.96,0.00029041,7]
[384957403,1757633536964,-1272.31,0.00029041,7]
[384957404,1757633536974,-1074.79,0.00029041,7]
[384957405,1757633536984,-400.0,0.00029041,7]
[384957406,1757633536993,-647.42,0.00029041,7]
[384957407,1757633537003,-698.12,0.00029041,7]
[384957408,1757633537012,-1259.47,0.00029041,7]
[384957409,1757633537023,-1361.45,0.00029041,7]
[384957410,1757633537032,-400.0,0.00029041,7]
[384957411,1757633537042,-978.1,0.00029041,7]
[384957412,1757633537052,-1108.2,0.00029041,7]
[384957413,1757633537062,-400.0,0.00029041,7]
[384957414,1757633537072,-968.72,0.00029041,7]
[384957415,1757633537082,-568.98,0.00029041,7]
[384957416,1757633537092,-400.0,0.00029041,7]
[384957417,1757633537102,-455.43,0.00029041,7]
[384957418,1757633537112,-1514.27,0.00029041,7]
[384957419,1757633537122,-593.91,0.00029041,7]
[384957420,1757633537131,-1165.07,0.00029041,7]
[384957421,1757633537141,-400.0,0.00029041,7]
[384957422,1757633537151,-400.0,0.00029041,7]
[384957423,1757633537161,-1245.93,0.00029041,7]
[384957424,1757633537171,-400.0,0.00029041,7]
[384957425,1757633537181,-400.0,0.00029041,7]
[384957426,1757633537191,-1080.41,0.00029041,7]
[384957427,1757633537201,-1199.29,0.00029041,7]
[384957428,1757633537212,-443.85,0.00029041,7]
[384957429,1757633537222,-1223.15,0.00029041,7]
[384957430,1757633537232,-1507.47,0.00029041,7]
[384957431,1757633537242,-1390.09,0.00029041,7]
[384957432,1757633537252,-1314.63,0.00029041,7]
[384957433,1757633537262,-429.56,0.00029041,7]
[384957434,1757633537272,-676.11,0.00029041,7]
[384957435,1757633537282,-426.10518729,0.00029041,7]
[384957436,1757633537292,-403.06,0.00029041,7]
[384957437,1757633537302,-933.51,0.00029041,7]
[384957438,1757633537311,-1035.3,0.00029041,7]
[384957439,1757633537322,-404.34205562,0.00029041,7]
[384957440,1757633537332,-1072.69,0.00029041,7]
[384957441,1757633537342,-400.0,0.00029041,7]
[384957442,1757633537352,-400.0,0.00029041,7]
[384957443,1757633537363,-1055.14,0.00029041,7]
[384957444,1757633537374,-400.0,0.00029041,7]
[384957445,1757633537385,-400.0,0.00029041,7]
[384957446,1757633537395,-400.0,0.00029041,7]
[384957447,1757633537406,-1354.49,0.00029041,7]
[384957448,1757633537416,-400.0,0.00029041,7]
[384957449,1757633537427,-400.0,0.00029041,7]
[384957450,1757633537437,-836.58,0.00029041,7]
[384957451,1757633537447,-1103.91,0.00029041,7]
[384957452,1757633537457,-1130.25,0.00029041,7]
[384957453,1757633537468,-400.0,0.00029041,7]
[384957454,1757633537478,-1663.99,0.00029041,7]
[384957455,1757633537488,-400.0,0.00029041,7]
[384957456,1757633537498,-400.0,0.00029041,7]
[384957457,1757633537508,-540.94,0.00029041,7]
[384957458,1757633537518,-400.0,0.00029041,7]
[384957459,1757633537528,-400.0,0.00029041,7]
[384957460,1757633537538,-569.94,0.00029041,7]
[384957461,1757633537548,-1453.75,0.00029041,7]
[384957462,1757633537558,-1044.97,0.00029041,7]
[384957463,1757633537568,-400.0,0.00029041,7]
[384957464,1757633537578,-400.0,0.00029041,7]
[384957465,1757633537589,-400.0,0.00029041,7]
[384957466,1757633537599,-861.3,0.00029041,7]
[384957467,1757633537609,-506.39,0.00029041,7]
[384957468,1757633537620,-1016.72,0.00029041,7]
[384957469,1757633537631,-673.34,0.00029041,7]
[384957470,1757633537641,-722.58,0.00029041,7]
[384957471,1757633537887,-400.0,0.00029041,7]
[384957472,1757633537907,-400.0,0.00029041,7]
[384957473,1757633537917,-755.45,0.00029041,7]
[384957474,1757633537927,-1392.38,0.00029041,7]
[384957475,1757633537937,-400.0,0.00029041,7]
[384957476,1757633537950,-835.25,0.00029041,7]
[384957477,1757633537961,-688.74,0.00029041,7]
[384957478,1757633537971,-1071.53,0.00029041,7]
[384957479,1757633537980,-514.55,0.00029041,7]
[384957480,1757633537990,-816.22,0.00029041,7]
[384957481,1757633538000,-932.79,0.00029041,7]
[384957482,1757633538009,-1697.84,0.00029041,7]
[384957483,1757633538019,-1128.02,0.00029041,7]
[384957484,1757633538028,-1395.9,0.00029041,7]
[384957485,1757633538038,-400.0,0.00029041,7]
[384957486,1757633538047,-1126.95,0.00029041,7]
[384957487,1757633538057,-237.17094092,0.00029041,7]
[384957488,1757633538067,-400.0,0.00029041,7]
[384957489,1757633538077,-400.0,0.00029041,7]
[384957490,1757633538086,-425.91,0.00029041,7]
[384957491,1757633538096,-962.07,0.00029041,7]
[384957492,1757633538105,-530.11234582,0.00029041,7]
[384957493,1757633538115,-428.25,0.00029041,7]
[384957494,1757633538126,-1242.86,0.00029041,7]
[384957495,1757633538135,-1114.81,0.00029041,7]
[384957496,1757633538143,-406.36928778,0.00029041,7]
[384957497,1757633538153,-1120.66,0.00029041,7]
[384957498,1757633538162,-475.94,0.00029041,7]
[384957499,1757633538171,-566.16,0.00029041,7]
[384957500,1757633538181,-669.71,0.00029041,7]
[384957501,1757633538190,-400.0,0.00029041,7]
[384957502,1757633538199,-400.0,0.00029041,7]
[384957503,1757633538208,-687.42,0.00029041,7]
[384957504,1757633538218,-1168.38,0.00029041,7]
[384957505,1757633538227,-783.77,0.00029041,7]
[384957506,1757633538237,-1220.98,0.00029041,7]
[384957507,1757633538246,-1304.66,0.00029041,7]
[384957508,1757633538256,-706.87,0.00029041,7]
[384957509,1757633538266,-543.67,0.00029041,7]
[384957510,1757633538276,-400.0,0.00029041,7]
[384957511,1757633538286,-400.0,0.00029041,7]
[384957512,1757633538295,-400.0,0.00029041,7]
[384957513,1757633538304,-1017.54,0.00029041,7]
[384957514,1757633538313,-1010.45,0.00029041,7]
[384957515,1757633538322,-400.0,0.00029041,7]
[384957516,1757633538331,-411.58,0.00029041,7]
[384957517,1757633538341,-400.0,0.00029041,7]
[384957518,1757633538350,-436.9,0.00029041,7]
[384957519,1757633538359,-400.0,0.00029041,7]
[384957520,1757633538369,-1182.03,0.00029041,7]
[384957521,1757633538378,-1203.98,0.00029041,7]
[384957522,1757633538387,-400.0,0.00029041,7]
[384957523,1757633538397,-1451.67,0.00029041,7]
[384957524,1757633538406,-978.41,0.00029041,7]
[384957525,1757633538416,-1642.45,0.00029041,7]
[384957526,1757633538426,-444.39830312,0.00029041,7]
[384957527,1757633538436,-400.0,0.00029041,7]
[384957528,1757633538446,-1921.44,0.00029041,7]
[384957529,1757633538455,-400.0,0.00029041,7]
[384957530,1757633538465,-400.0,0.00029041,7]
[384957531,1757633538474,-1357.4,0.00029041,7]
[384957532,1757633538483,-1129.64,0.00029041,7]
[384957533,1757633538493,-1403.43,0.00029041,7]
[384957534,1757633538502,-415.39,0.00029041,7]
[384957535,1757633538512,-400.0,0.00029041,7]
[384957536,1757633538521,-1127.73,0.00029041,7]
[384957537,1757633538530,-863.75,0.00029041,7]
[384957538,1757633538540,-801.85,0.00029041,7]
[384957539,1757633538549,-515.73,0.00029041,7]
[384957540,1757633538558,-579.29,0.00029041,7]
[384957541,1757633538567,-951.97,0.00029041,7]
[384957542,1757633538578,-1347.07,0.00029041,7]
[384957543,1757633538587,-1027.64,0.00029041,7]
[384957544,1757633538597,-675.51,0.00029041,7]
[384957545,1757633538606,-475.39,0.00029041,7]
[384957546,1757633538616,-400.0,0.00029041,7]
[384957547,1757633538625,-751.78,0.00029041,7]
[384957548,1757633538635,-400.0,0.00029041,7]
[384957549,1757633538645,-400.0,0.00029041,7]
[384957550,1757633538654,-610.88,0.00029041,7]
[384957551,1757633538663,-1829.98,0.00029041,7]
[384957552,1757633538672,-1162.24,0.00029041,7]
[384957553,1757633538681,-1338.64,0.00029041,7]
[384957554,1757633538691,-532.1,0.00029041,7]
[384957555,1757633538701,-400.0,0.00029041,7]
[384957556,1757633538710,-1207.66,0.00029041,7]
[384957557,1757633538720,-400.0,0.00029041,7]
[384957558,1757633538730,-1509.88,0.00029041,7]
[384957559,1757633538740,-1345.49,0.00029041,7]
[384957560,1757633538749,-400.0,0.00029041,7]
[384957561,1757633538759,-721.91,0.00029041,7]
[384957562,1757633538768,-1071.35,0.00029041,7]
[384957563,1757633538778,-952.16,0.00029041,7]
[384957564,1757633538788,-795.13,0.00029041,7]
[384957565,1757633538797,-914.46,0.00029041,7]
[384957566,1757633538807,-1471.32,0.00029041,7]
[384957567,1757633538817,-752.2,0.00029041,7]
[384957568,1757633538827,-401.61,0.00029041,7]
[384957569,1757633538837,-896.88,0.00029041,7]
[384957570,1757633538847,-400.0,0.00029041,7]
[384957571,1757633538856,-400.0,0.00029041,7]
[384957572,1757633538866,-400.0,0.00029041,7]
[384957573,1757633538876,-400.0,0.00029041,7]
[384957574,1757633538885,-470.55,0.00029041,7]
[384957575,1757633538895,-1192.17,0.00029041,7]
[384957576,1757633538905,-400.0,0.00029041,7]
[384957577,1757633538915,-1028.3,0.00029041,7]
[384957578,1757633538925,-924.78,0.00029041,7]
[384957579,1757633538935,-400.0,0.00029041,7]
[384957580,1757633538949,-1333.95,0.00029041,7]
[384957581,1757633538959,-1316.83,0.00029041,7]
[384957582,1757633538968,-1022.6,0.00029041,7]
[384957583,1757633538979,-867.09,0.00029041,7]
[384957584,1757633538989,-717.0,0.00029041,7]
[384957585,1757633538999,-1990.33,0.00029041,7]
[384957586,1757633539008,-400.0,0.00029041,7]
[384957587,1757633539018,-400.0,0.00029041,7]
[384957588,1757633539028,-733.5,0.00029041,7]
[384957589,1757633539038,-757.99,0.00029041,7]
[384957590,1757633539048,-2138.73,0.00029041,7]
[384957591,1757633539057,-786.95,0.00029041,7]
[384957592,1757633539067,-436.27,0.00029041,7]
[384957593,1757633539077,-1080.19,0.00029041,7]
[384957594,1757633539087,-400.0,0.00029041,7]
[384957595,1757633539097,-1408.38,0.00029041,7]
[384957596,1757633539107,-1679.93,0.00029041,7]
[384957597,1757633539117,-891.25,0.00029041,7]
[384957598,1757633539127,-400.0,0.00029041,7]
[384957599,1757633539137,-1455.65,0.00029041,7]
[384957600,1757633539146,-1001.93,0.00029041,7]
[384957601,1757633539156,-911.04,0.00029041,7]
[384957602,1757633539166,-400.0,0.00029041,7]
[384957603,1757633539176,-2319.37,0.00029041,7]
[384957604,1757633539186,-400.0,0.00029041,7]
[384957605,1757633539196,-400.0,0.00029041,7]
[384957606,1757633539205,-870.67,0.00029041,7]
[384957607,1757633539215,-4745.08,0.00029041,7]
[384957608,1757633539225,-1022.9,0.00029041,7]
[384957609,1757633539235,-475.11,0.00029041,7]
[384957610,1757633539245,-400.0,0.00029041,7]
[384957611,1757633539256,-910.89,0.00029041,7]
[384957612,1757633539267,-400.0,0.00029041,7]
[384957613,1757633539276,-1292.66,0.00029041,7]
[384957614,1757633539286,-1527.47,0.00029041,7]
[384957615,1757633539295,-400.0,0.00029041,7]
[384957616,1757633539305,-1087.68,0.00029041,7]
[384957617,1757633539315,-448.79,0.00029041,7]
[384957618,1757633539325,-1002.17,0.00029041,7]
[384957619,1757633539334,-464.58,0.00029041,7]
[384957620,1757633539344,-400.0,0.00029041,7]
[384957621,1757633539353,-400.0,0.00029041,7]
[384957622,1757633539364,-903.38,0.00029041,7]
[384957623,1757633539373,-1327.96,0.00029041,7]
[384957624,1757633539384,-552.5,0.00029041,7]
[384957625,1757633539394,-400.0,0.00029041,7]
[384957626,1757633539403,-1233.51,0.00029041,7]
[384957627,1757633539413,-400.0,0.00029041,7]
[384957628,1757633539422,-794.79,0.00029041,7]
[384957629,1757633539432,-400.0,0.00029041,7]
[384957630,1757633539442,-431.41,0.00029041,7]
[384957631,1757633539452,-300.0,0.00029041,7]
[384957632,1757633539461,-729.34,0.00029041,7]
[384957633,1757633539471,-607.94,0.00029041,7]
[384957634,1757633539480,-474.99,0.00029041,7]
[384957635,1757633539489,-950.4,0.00029041,7]
[384957636,1757633539499,-1175.32,0.00029041,7]
[384957637,1757633539509,-1985.7,0.00029041,7]
[384957638,1757633539518,-744.96,0.00029041,7]
[384957639,1757633539528,-892.33,0.00029041,7]
[384957640,1757633539537,-1438.81,0.00029041,7]
[384957641,1757633539546,-886.39,0.00029041,7]
[384957642,1757633539555,-657.15,0.00029041,7]
[384957643,1757633539565,-998.3,0.00029041,7]
[384957644,1757633539574,-1340.31,0.00029041,7]
[384957645,1757633539583,-5647.79,0.00029041,7]
[384957646,1757633539593,-400.0,0.00029041,7]
[384957647,1757633539602,-400.0,0.00029041,7]
[384957648,1757633539611,-632.61,0.00029041,7]
[384957649,1757633539621,-339.4333321,0.00029041,7]
[384957650,1757633539631,-1183.19,0.00029041,7]
[384957651,1757633539640,-1003.05,0.00029041,7]
[384957652,1757633539650,-446.68,0.00029041,7]
[384957653,1757633539659,-400.0,0.00029041,7]
[384957654,1757633539669,-1000.57,0.00029041,7]
[384957655,1757633539679,-309.75865942,0.00029041,7]
[384957656,1757633539689,-965.62,0.00029041,7]
[384957657,1757633539698,-1374.75,0.00029041,7]
[384957658,1757633539707,-450.09,0.00029041,7]
[384957659,1757633539717,-1005.88,0.00029041,7]
[384957660,1757633539727,-579.26,0.00029041,7]
[384957661,1757633539736,-1667.9,0.00029041,7]
[384957662,1757633539746,-400.0,0.00029041,7]
[384957663,1757633539755,-528.32,0.00029041,7]
[384957664,1757633539765,-400.0,0.00029041,7]
[384957665,1757633539774,-1007.03,0.00029041,7]
[384957666,1757633539784,-1098.51,0.00029041,7]
[384957667,1757633539794,-400.0,0.00029041,7]
[384957668,1757633539804,-1266.55,0.00029041,7]
[384957669,1757633539814,-2058.78,0.00029041,7]
[384957670,1757633539824,-400.0,0.00029041,7]
[384957671,1757633539833,-561.88,0.00029041,7]
[384957672,1757633539843,-982.86,0.00029041,7]
[384957673,1757633539852,-441.63,0.00029041,7]
[384957674,1757633539862,-400.0,0.00029041,7]
[384957675,1757633539873,-1094.3,0.00029041,7]
[384957676,1757633539884,-989.83,0.00029041,7]
[384957677,1757633539894,-1269.26,0.00029041,7]
[384957678,1757633539903,-854.63,0.00029041,7]
[384957679,1757633539913,-802.24,0.00029041,7]
[384957680,1757633539923,-1604.77,0.00029041,7]
[384957681,1757633539932,-775.26,0.00029041,7]
[384957682,1757633539949,-1151.18,0.00029041,7]
[384957683,1757633539958,-400.0,0.00029041,7]
[384957684,1757633539967,-861.19,0.00029041,7]
[384957685,1757633539977,-1298.19,0.00029041,7]
[384957686,1757633539986,-952.17,0.00029041,7]
[384957687,1757633539996,-1101.97,0.00029041,7]
[384957688,1757633540005,-2213.82,0.00029041,7]
[384957689,1757633540014,-2204.19,0.00029041,7]
[384957690,1757633540025,-400.0,0.00029041,7]
[384957691,1757633540034,-400.0,0.00029041,7]
[384957692,1757633540043,-406.49,0.00029041,7]
[384957693,1757633540053,-754.57,0.00029041,7]
[384957694,1757633540062,-1178.64,0.00029041,7]
[384957695,1757633540071,-1273.24,0.00029041,7]
[384957696,1757633540080,-1522.42,0.00029041,7]
[384957697,1757633540089,-453.02,0.00029041,7]
[384957698,1757633540099,-400.0,0.00029041,7]
[384957699,1757633540108,-400.0,0.00029041,7]
[384957700,1757633540117,-949.12,0.00029041,7]
[384957701,1757633540127,-1083.88,0.00029041,7]
[384957702,1757633540136,-1959.23,0.00029041,7]
[384957703,1757633540146,-1156.25,0.00029041,7]
[384957704,1757633540155,-1599.37,0.00029041,7]
[384957705,1757633540164,-1233.31,0.00029041,7]
[384957706,1757633540173,-591.65,0.00029041,7]
[384957707,1757633540182,-400.0,0.00029041,7]
[384957708,1757633540191,-1169.6,0.00029041,7]
[384957709,1757633540199,-400.0,0.00029041,7]
[384957710,1757633540208,-609.33,0.00029041,7]
[384957711,1757633540218,-505.59,0.00029041,7]
[384957712,1757633540227,-400.0,0.00029041,7]
[384957713,1757633540236,-1184.35,0.00029041,7]
[384957714,1757633540246,-1314.36,0.00029041,7]
[384957715,1757633540256,-779.61,0.00029041,7]
[384957716,1757633540265,-2191.34,0.00029041,7]
[384957717,1757633540275,-2138.23,0.00029041,7]
[384957718,1757633540285,-3752.4,0.00029041,7]
[384957719,1757633540294,-1286.81,0.00029041,7]
[384957720,1757633540303,-1836.16,0.00029041,7]
[384957721,1757633540313,-400.0,0.00029041,7]
[384957722,1757633540322,-2397.01,0.00029041,7]
[384957723,1757633540332,-1204.85,0.00029041,7]
[384957724,1757633540342,-715.33,0.00029041,7]
[384957725,1757633540351,-1264.96,0.00029041,7]
[384957726,1757633540361,-400.0,0.00029041,7]
[384957727,1757633540371,-466.17,0.00029041,7]
[384957728,1757633540381,-400.0,0.00029041,7]
[384957729,1757633540390,-2021.87,0.00029041,7]
[384957730,1757633540400,-1299.21,0.00029041,7]
[384957731,1757633540409,-2078.21,0.00029041,7]
[384957732,1757633540419,-2054.39,0.00029041,7]
[384957733,1757633540428,-1611.06,0.00029041,7]
[384957734,1757633540438,-3283.72,0.00029041,7]
[384957735,1757633540448,-2546.19,0.00029041,7]
[384957736,1757633540457,-625.24,0.00029041,7]
[384957737,1757633540467,-1133.37,0.00029041,7]
[384957738,1757633540476,-1010.54,0.00029041,7]
[384957739,1757633540486,-1350.88,0.00029041,7]
[384957740,1757633540495,-2788.83,0.00029041,7]
[384957741,1757633540505,-1239.86,0.00029041,7]
[384957742,1757633540514,-1161.6,0.00029041,7]
[384957743,1757633540523,-400.0,0.00029041,7]
[384957744,1757633540532,-3659.99,0.00029041,7]
[384957745,1757633540542,-400.0,0.00029041,7]
[384957746,1757633540552,-1058.57,0.00029041,7]
[384957747,1757633540561,-870.59,0.00029041,7]
[384957748,1757633540571,-1051.01,0.00029041,7]
[384957749,1757633540581,-885.69,0.00029041,7]
[384957750,1757633540592,-1221.0,0.00029041,7]
[384957751,1757633540602,-981.38,0.00029041,7]
[384957752,1757633540611,-2580.89,0.00029041,7]
[384957753,1757633540620,-401.69,0.00029041,7]
[384957754,1757633540630,-1325.12,0.00029041,7]
[384957755,1757633540639,-1406.34,0.00029041,7]
[384957756,1757633540649,-450.31,0.00029041,7]
[384957757,1757633540659,-1966.27,0.00029041,7]
[384957758,1757633540669,-508.18,0.00029041,7]
[384957759,1757633540678,-1031.57,0.00029041,7]
[384957760,1757633540688,-1144.2,0.00029041,7]
[384957761,1757633540697,-400.0,0.00029041,7]
[384957762,1757633540706,-2005.14,0.00029041,7]
[384957763,1757633540715,-400.0,0.00029041,7]
[384957764,1757633540724,-1338.86,0.00029041,7]
[384957765,1757633540734,-400.0,0.00029041,7]
[384957766,1757633540744,-400.0,0.00029041,7]
[384957767,1757633540753,-1705.5,0.00029041,7]
[384957768,1757633540763,-1384.85,0.00029041,7]
[384957769,1757633540773,-752.53,0.00029041,7]
[384957770,1757633540783,-1424.49,0.00029041,7]
[384957771,1757633540792,-1068.12,0.00029041,7]
[384957772,1757633540802,-1543.53,0.00029041,7]
[384957773,1757633540811,-1197.36,0.00029041,7]
[384957774,1757633540821,-1089.51,0.00029041,7]
[384957775,1757633540831,-1419.68,0.00029041,7]
[384957776,1757633540840,-987.91,0.00029041,7]
[384957777,1757633540850,-560.91,0.00029041,7]
[384957778,1757633540859,-1405.14,0.00029041,7]
[384957779,1757633540869,-507.06,0.00029041,7]
[384957780,1757633540878,-1107.15,0.00029041,7]
[384957781,1757633540887,-400.0,0.00029041,7]
[384957782,1757633540898,-1286.63,0.00029041,7]
[384957783,1757633540907,-407.66,0.00029041,7]
[384957784,1757633540917,-1615.55,0.00029041,7]
[384957785,1757633540926,-1227.53,0.00029041,7]
[384957786,1757633540935,-2361.95,0.00029041,7]
[384957787,1757633540949,-1700.02,0.00029041,7]
[384957788,1757633540958,-1039.07,0.00029041,7]
[384957789,1757633540967,-460.81,0.00029041,7]
[384957790,1757633540976,-1435.29,0.00029041,7]
[384957791,1757633540986,-1444.49,0.00029041,7]
[384957792,1757633540995,-726.73,0.00029041,7]
[384957793,1757633541004,-6639.42,0.00029041,7]
[384957794,1757633541013,-1359.39,0.00029041,7]
[384957795,1757633541022,-2478.99,0.00029041,7]
[384957796,1757633541031,-2076.21,0.00029041,7]
[384957797,1757633541040,-1098.13,0.00029041,7]
[384957798,1757633541050,-1274.1,0.00029041,7]
[384957799,1757633541059,-1378.72,0.00029041,7]
[384957800,1757633541068,-1502.78,0.00029041,7]
[384957801,1757633541078,-499.68,0.00029041,7]
[384957802,1757633541088,-400.0,0.00029041,7]
[384957803,1757633541097,-1042.46,0.00029041,7]
[384957804,1757633541106,-3024.01,0.00029041,7]
[384957805,1757633541115,-400.0,0.00029041,7]
[384957806,1757633541126,-1861.34,0.00029041,7]
[384957807,1757633541138,-400.0,0.00029041,7]
[384957808,1757633541148,-444.38,0.00029041,7]
[384957809,1757633541158,-1020.88,0.00029041,7]
[384957810,1757633541167,-2326.81,0.00029041,7]
[384957811,1757633541177,-3357.08,0.00029041,7]
[384957812,1757633541187,-1539.49,0.00029041,7]
[384957813,1757633541196,-407.4,0.00029041,7]
[384957814,1757633541205,-1135.17,0.00029041,7]
[384957815,1757633541214,-1001.4,0.00029041,7]
[384957816,1757633541224,-4286.71,0.00029041,7]
[384957817,1757633541234,-400.0,0.00029041,7]
[384957818,1757633541243,-400.0,0.00029041,7]
[384957819,1757633541253,-1178.15,0.00029041,7]
[384957820,1757633541263,-4759.47,0.00029041,7]
[384957821,1757633541272,-1137.02,0.00029041,7]
[384957822,1757633541282,-681.95,0.00029041,7]
[384957823,1757633541291,-1095.27,0.00029041,7]
[384957824,1757633541300,-1249.41,0.00029041,7]
[384957825,1757633541309,-4804.05,0.00029041,7]
[384957826,1757633541319,-923.45,0.00029041,7]
[384957827,1757633541328,-712.85,0.00029041,7]
[384957828,1757633541338,-1384.54,0.00029041,7]
[384957829,1757633541348,-2383.73,0.00029041,7]
[384957830,1757633541358,-1385.16,0.00029041,7]
[384957831,1757633541367,-5278.59,0.00029041,7]
[384957832,1757633541376,-1440.73,0.00029041,7]
[384957833,1757633541388,-909.93,0.00029041,7]
[384957834,1757633541398,-1917.55,0.00029041,7]
[384957835,1757633541408,-943.46,0.00029041,7]
[384957836,1757633541417,-400.0,0.00029041,7]
[384957837,1757633541427,-1768.75,0.00029041,7]